fUST/lending_fUST_20240222
["ID","MTS","AMOUNT","RATE_DAILY","PERIOD"]
[314807420,1708559445186,-50000.0,0.00021821,2]
[314807421,1708559445197,-1242.6166215,0.000219,2]
[314807422,1708559445208,-2852.63,0.000219,2]
[314807423,1708559445219,-500.0,0.00021901,2]
[314807424,1708559445230,-500.0,0.00021901,2]
[314807425,1708559445240,-1743.76,0.00021901,2]
[314807427,1708559445250,-1546.75,0.00021901,2]
[314807428,1708559445260,-1102.7,0.00021901,2]
[314807429,1708559445269,-500.0,0.00021901,2]
[314807431,1708559445279,-500.0,0.00021901,2]
[314807433,1708559445288,-535.78,0.00021901,2]
[314807435,1708559445298,-724.27,0.00021901,2]
[314807437,1708559445308,-2567.85,0.00021901,2]
[314807439,1708559445320,-794.81,0.00021901,2]
[314807440,1708559445330,-500.0,0.00021901,2]
[314807441,1708559445340,-1294.5,0.00021901,2]
[314807442,1708559445350,-508.36,0.00021901,2]
[314807443,1708559445360,-500.0,0.00021901,2]
[314807444,1708559445370,-500.0,0.00021902,2]
[314807445,1708559445381,-500.0,0.00021902,2]
[314807446,1708559445392,-500.0,0.00021902,2]
[314807447,1708559445401,-500.0,0.00021902,2]
[314807448,1708559445410,-1243.07,0.00021902,2]
[314807449,1708559445420,-500.0,0.00021902,2]
[314807450,1708559445430,-1866.5,0.00021902,2]
[314807451,1708559445439,-740.71,0.00021902,2]
[314807452,1708559445449,-500.0,0.00021902,2]
[314807453,1708559445459,-579.6,0.00021903,2]
[314807454,1708559445468,-1285.18,0.00021903,2]
[314807455,1708559445478,-544.32,0.00021917,2]
[314807456,1708559445488,-10000.0,0.00021918,2]
[314807457,1708559445497,-400.35194354,0.00021918,2]
[314807458,1708559445508,-549.17,0.00021933,2]
[314807459,1708559445518,-500.0,0.00021933,2]
[314807460,1708559445528,-300.0,0.00021967,2]
[314807461,1708559445537,-1928.84223725,0.00022,3]
[314807462,1708559445547,-721051.95675785,0.00022,2]
[314807463,1708559445562,-3848.54936751,0.00022,2]
[314808512,1708559758962,3293.6258451,0.00019092,2]
[314808602,1708560495345,7999.59486689,0.00019092,2]
[314808603,1708560513325,7371.12940835,0.00019092,2]
[314808635,1708560632006,-2517.38590096,0.0001959,2]
[314808637,1708560632016,-162.02108506,0.00019598,2]
[314808639,1708560632028,-500.0,0.0001971,2]
[314808641,1708560632038,-500.0,0.00019982,2]
[314808643,1708560632048,-500.0,0.00019982,2]
[314808645,1708560632059,-275.72485347,0.00019982,2]
[314808647,1708560632071,-224.27514653,0.00019982,2]
[314808649,1708560632081,-500.0,0.00019982,2]
[314808651,1708560632091,-776.92,0.00019982,2]
[314808653,1708560632101,-197.69406078,0.00019983,2]
[314808656,1708560632113,-302.30593922,0.00019983,2]
[314808658,1708560632123,-500.0,0.00019983,2]
[314808660,1708560632134,-751.90406078,0.00019983,2]
[314808662,1708560632147,-241.23593922,0.00019983,2]
[314808663,1708560632156,-500.0,0.00019983,2]
[314808664,1708560632167,-803.24,0.00019983,2]
[314808665,1708560632178,-500.0,0.00019983,2]
[314808666,1708560632190,-212.07049447,0.00019983,2]
[314808667,1708560632200,-500.0,0.00019983,2]
[314808668,1708560632211,-500.0,0.00019983,2]
[314808669,1708560632222,-500.0,0.00019983,2]
[314808670,1708560632232,-220.30022493,0.00019983,2]
[314808671,1708560632242,-500.0,0.00019983,2]
[314808672,1708560632252,-155.03875969,0.0002,2]
[314808673,1708560632262,-155.03875969,0.00020255,2]
[314808674,1708560632273,-443.99731792,0.00020255,2]
[314808699,1708560638008,-583.87481032,0.00019589,2]
[314808700,1708560638065,-55.94989944,0.00019589,2]
[314808701,1708560638074,-56.00268208,0.00020255,2]
[314808702,1708560638083,-500.0,0.00020255,2]
[314808703,1708560638104,-500.0,0.00020255,2]
[314808704,1708560638114,-1518.90686734,0.00020255,2]
[314808705,1708560638127,-578.72313266,0.00020255,2]
[314808706,1708560638137,-500.0,0.00020255,2]
[314808707,1708560638146,-500.0,0.00020255,2]
[314808708,1708560638156,-500.0,0.00020256,2]
[314808709,1708560638166,-500.0,0.00020256,2]
[314808711,1708560638176,-12.27686734,0.00020256,2]
[314808885,1708560643000,-487.72313266,0.00020256,2]
[314808886,1708560643010,-500.0,0.00020256,2]
[314808887,1708560643019,-442.08895022,0.00020256,2]
[314808888,1708560643029,-500.0,0.00020256,2]
[314808889,1708560643038,-776.92,0.00020256,2]
[314808890,1708560643049,-500.0,0.00020256,2]
[314808891,1708560643059,-500.0,0.00020256,2]
[314808892,1708560643068,-500.10538064,0.00020256,2]
[314808893,1708560643078,-500.0,0.00020256,2]
[314808894,1708560643087,-500.0,0.00020256,2]
[314808895,1708560643096,-500.0,0.00020256,2]
[314808896,1708560643106,-500.0,0.00020256,2]
[314808897,1708560643115,-500.0,0.00020256,2]
[314808898,1708560643125,-500.0,0.00020256,2]
[314808899,1708560643134,-945.31,0.00020256,2]
[314808900,1708560643143,-500.0,0.00020256,2]
[314808901,1708560643153,-500.0,0.00020256,2]
[314808902,1708560643163,-500.0,0.00020257,2]
[314808903,1708560643172,-585.79634965,0.00020257,2]
[314808904,1708560643182,-993.14,0.00020257,2]
[314808905,1708560643191,-500.0,0.00020257,2]
[314808906,1708560643201,-803.24,0.00020257,2]
[314808907,1708560643211,-500.0,0.00020257,2]
[314808908,1708560643220,-500.0,0.00020257,2]
[314808909,1708560643230,-1374.99,0.00020257,2]
[314808910,1708560643239,-1214.6,0.00020257,2]
[314808911,1708560643249,-500.0,0.00020257,2]
[314808912,1708560643258,-735.14,0.00020257,2]
[314808913,1708560643268,-500.0,0.00020257,2]
[314808914,1708560643277,-738.46,0.00020257,2]
[314808915,1708560643287,-1971.41,0.00020529,2]
[314808916,1708560643297,-2097.63,0.00020529,2]
[314808917,1708560643306,-500.0,0.00020529,2]
[314808918,1708560643320,-500.0,0.0002053,2]
[314808919,1708560643329,-500.0,0.0002053,2]
[314808920,1708560643338,-500.0,0.0002053,2]
[314808921,1708560643347,-500.0,0.0002053,2]
[314808922,1708560643357,-776.92,0.0002053,2]
[314808923,1708560643366,-500.0,0.0002053,2]
[314808924,1708560643376,-500.0,0.0002053,2]
[314808925,1708560643386,-500.0,0.0002053,2]
[314808926,1708560643396,-500.0,0.0002053,2]
[314808927,1708560643405,-945.31,0.0002053,2]
[314808928,1708560643414,-500.0,0.0002053,2]
[314808929,1708560643424,-194.15192688,0.0002053,2]
[314808930,1708560643434,-500.0,0.00020531,2]
[314808931,1708560643444,-993.14,0.00020531,2]
[314808932,1708560643453,-500.0,0.00020531,2]
[314808933,1708560643463,-803.24,0.00020531,2]
[314808934,1708560643474,-500.0,0.00020531,2]
[314808935,1708560643484,-500.0,0.00020531,2]
[314808936,1708560643494,-1374.99,0.00020531,2]
[314808937,1708560643503,-1214.6,0.00020531,2]
[314808938,1708560643513,-500.0,0.00020531,2]
[314808939,1708560643522,-735.14,0.00020531,2]
[314808940,1708560643531,-338.05,0.00020531,2]
[314808941,1708560643540,-738.46,0.00020531,2]
[314808942,1708560643549,-1971.41,0.00020803,2]
[314808943,1708560643558,-2097.63,0.00020803,2]
[314808944,1708560643567,-500.0,0.00020803,2]
[314808945,1708560643578,-500.0,0.00020804,2]
[314808946,1708560643588,-551.65842974,0.00020804,2]
[314808947,1708560643597,-500.0,0.00020804,2]
[314808948,1708560643607,-500.0,0.00020804,2]
[314808949,1708560643616,-776.92,0.00020804,2]
[314808950,1708560643626,-500.0,0.00020804,2]
[314808951,1708560643635,-500.0,0.00020804,2]
[314808952,1708560643644,-500.0,0.00020804,2]
[314808953,1708560643653,-500.0,0.00020804,2]
[314808954,1708560643663,-945.31,0.00020804,2]
[314808955,1708560643673,-188.09451872,0.00020804,2]
[314808956,1708560643682,-500.0,0.00020805,2]
[314808957,1708560643692,-993.14,0.00020805,2]
[314808958,1708560643702,-500.0,0.00020805,2]
[314808959,1708560643711,-803.24,0.00020805,2]
[314808960,1708560643721,-500.0,0.00020805,2]
[314808961,1708560643731,-500.0,0.00020805,2]
[314808962,1708560643741,-1374.99,0.00020805,2]
[314808963,1708560643750,-1214.6,0.00020805,2]
[314808964,1708560643760,-500.0,0.00020805,2]
[314808965,1708560643769,-735.14,0.00020805,2]
[314808966,1708560643778,-738.46,0.00020805,2]
[314808967,1708560643788,-20927.22838878,0.000209,2]
[314808968,1708560643799,-1971.41,0.00021077,2]
[314808969,1708560643808,-2097.63,0.00021077,2]
[314808970,1708560643818,-155.13962566,0.00021077,2]
[314808971,1708560643827,-500.0,0.00021077,2]
[314808972,1708560643837,-500.0,0.00021078,2]
[314808973,1708560643847,-500.0,0.00021078,2]
[314808974,1708560643857,-500.0,0.00021078,2]
[314808975,1708560643867,-776.92,0.00021078,2]
[314808976,1708560643877,-518.8695461,0.00021078,2]
[314808977,1708560643886,-500.0,0.00021078,2]
[314808978,1708560643895,-500.0,0.00021078,2]
[314808979,1708560643905,-500.0,0.00021078,2]
[314808980,1708560643914,-945.31,0.00021078,2]
[314808981,1708560643923,-500.0,0.00021079,2]
[314808982,1708560643932,-993.14,0.00021079,2]
[314808983,1708560643941,-500.0,0.00021079,2]
[314808984,1708560643951,-803.24,0.00021079,2]
[314808985,1708560643960,-500.0,0.00021079,2]
[314808986,1708560643970,-445.49264409,0.00021079,2]
[314808987,1708560643979,-1374.99,0.00021079,2]
[314808988,1708560643988,-1214.6,0.00021079,2]
[314808989,1708560643998,-500.0,0.00021079,2]
[314808990,1708560644007,-735.14,0.00021079,2]
[314808991,1708560644016,-738.46,0.00021079,2]
[314808992,1708560644026,-501.42463189,0.0002111,2]
[314808993,1708560644036,-387.90381234,0.0002111,2]
[314808994,1708560644047,-1000.0,0.0002111,2]
[314808995,1708560644057,-785.73283549,0.0002111,2]
[314808996,1708560644067,-1000.0,0.0002111,2]
[314808997,1708560644076,-461.19961604,0.0002111,2]
[314808998,1708560644086,-1187.75129974,0.0002111,2]
[314808999,1708560644095,-626.5637472,0.0002111,2]
[314809000,1708560644105,-1971.41,0.00021351,2]
[314809001,1708560644115,-2097.63,0.00021351,2]
[314809002,1708560644125,-295.67,0.00021351,2]
[314809003,1708560644135,-500.0,0.00021352,2]
[314809004,1708560644144,-456.43026898,0.00021352,2]
[314809005,1708560644154,-417.26223852,0.00021352,2]
[314809006,1708560644163,-776.92,0.00021352,2]
[314809007,1708560644172,-3914.37,0.00021352,2]
[314809008,1708560644182,-1166.57,0.00021352,2]
[314809009,1708560644192,-500.0,0.00021352,2]
[314809010,1708560644201,-500.0,0.00021352,2]
[314809011,1708560644211,-500.0,0.00021352,2]
[314809012,1708560644220,-500.0,0.00021352,2]
[314809013,1708560644230,-945.31,0.00021352,2]
[314809014,1708560644240,-500.0,0.00021353,2]
[314809015,1708560644249,-993.14,0.00021353,2]
[314809016,1708560644258,-500.0,0.00021353,2]
[314809017,1708560644268,-803.24,0.00021353,2]
[314809018,1708560644277,-500.0,0.00021353,2]
[314809019,1708560644287,-1374.99,0.00021353,2]
[314809020,1708560644298,-1214.6,0.00021353,2]
[314809021,1708560644308,-500.0,0.00021353,2]
[314809022,1708560644322,-735.14,0.00021353,2]
[314809023,1708560644332,-738.46,0.00021353,2]
[314809024,1708560644341,-1971.41,0.00021625,2]
[314809025,1708560644351,-2097.63,0.00021625,2]
[314809026,1708560644361,-500.0,0.00021626,2]
[314809027,1708560644370,-776.92,0.00021626,2]
[314809028,1708560644380,-3914.37,0.00021626,2]
[314809029,1708560644390,-1166.57,0.00021626,2]
[314809030,1708560644399,-500.0,0.00021626,2]
[314809031,1708560644408,-500.0,0.00021626,2]
[314809032,1708560644417,-500.0,0.00021626,2]
[314809033,1708560644426,-500.0,0.00021626,2]
[314809034,1708560644436,-945.31,0.00021626,2]
[314809035,1708560644445,-500.0,0.00021627,2]
[314809036,1708560644454,-993.14,0.00021627,2]
[314809037,1708560644463,-500.0,0.00021627,2]
[314809038,1708560644472,-803.24,0.00021627,2]
[314809039,1708560644482,-500.0,0.00021627,2]
[314809040,1708560644491,-1374.99,0.00021627,2]
[314809041,1708560644501,-1214.6,0.00021627,2]
[314809042,1708560644510,-500.0,0.00021627,2]
[314809043,1708560644519,-735.14,0.00021627,2]
[314809044,1708560644529,-738.46,0.00021627,2]
[314809045,1708560644538,-1079.76281768,0.00021819,4]
[314809046,1708560644548,-1971.41,0.00021899,2]
[314809047,1708560644557,-2097.63,0.00021899,2]
[314809048,1708560644566,-40812.51278523,0.000219,2]
[314809049,1708560644575,-500.0,0.000219,2]
[314809050,1708560644584,-776.92,0.000219,2]
[314809051,1708560644593,-3914.37,0.000219,2]
[314809052,1708560644602,-1166.57,0.000219,2]
[314809053,1708560644611,-500.0,0.000219,2]
[314809054,1708560644619,-500.0,0.000219,2]
[314809055,1708560644628,-500.0,0.000219,2]
[314809056,1708560644637,-500.0,0.000219,2]
[314809057,1708560644646,-945.31,0.000219,2]
[314809058,1708560644654,-500.0,0.00021901,2]
[314809059,1708560644663,-993.14,0.00021901,2]
[314809060,1708560644672,-500.0,0.00021901,2]
[314809061,1708560644681,-803.24,0.00021901,2]
[314809062,1708560644690,-500.0,0.00021901,2]
[314809063,1708560644698,-1374.99,0.00021901,2]
[314809064,1708560644707,-1214.6,0.00021901,2]
[314809065,1708560644716,-500.0,0.00021901,2]
[314809066,1708560644724,-735.14,0.00021901,2]
[314809067,1708560644733,-738.46,0.00021901,2]
[314809068,1708560644742,-521.64,0.00021917,2]
[314809069,1708560644751,-3844.9809672,0.00021918,2]
[314809070,1708560644760,-933379.93860065,0.00022,2]
[314809071,1708560644805,-2867.08825522,0.00022,2]
[314809072,1708560644827,-2885.86585161,0.00022,2]
[314809077,1708560646026,-1567.96,0.00022,2]
[314809078,1708560646085,-7485.57651702,0.00022,2]
[314809079,1708560646102,-628.869997,0.00022,2]
[314809080,1708560646115,-10211.5384578,0.00022,2]
[314809081,1708560646127,-1843.95787025,0.00022,2]
[314809082,1708560794545,167.1412866,0.00019243,2]
[314809083,1708560875429,5269.45618377,0.00029,30]
[314809084,1708561352013,1015.8759016,0.00019398,2]
[314809085,1708561465032,4450.88755401,0.0003,120]
[314809086,1708561540883,637.0,0.0003,120]
[314809087,1708561690202,66379.23993903,0.00029,30]
[314809128,1708561832171,-639.82470976,0.00019992,2]
[314809129,1708561832181,-1311.5580544,0.00019993,2]
[314809130,1708561832191,-10945.0,0.0002,2]
[314809131,1708561832200,-500.0,0.00020256,2]
[314809132,1708561832209,-682.93,0.00020256,2]
[314809134,1708561832352,-500.0,0.00020256,2]
[314809136,1708561832362,-500.0,0.00020256,2]
[314809138,1708561832372,-589.04,0.00020256,2]
[314809140,1708561832381,-500.0,0.00020256,2]
[314809142,1708561832391,-500.0,0.00020529,2]
[314809144,1708561832400,-517.95,0.00020529,2]
[314809146,1708561832409,-500.0,0.0002053,2]
[314809148,1708561832418,-682.93,0.0002053,2]
[314809150,1708561832427,-500.0,0.0002053,2]
[314809151,1708561832436,-589.04,0.0002053,2]
[314809153,1708561832445,-500.0,0.0002053,2]
[314809155,1708561832454,-500.0,0.000206,2]
[314809157,1708561832464,-500.0,0.000206,2]
[314809159,1708561832473,-500.0,0.000206,2]
[314809161,1708561832482,-1515.2351288,0.00020601,2]
[314809163,1708561832491,-5000.0,0.00020601,2]
[314809165,1708561832500,-460.89593813,0.00020601,2]
[314809167,1708561832509,-1920.43576849,0.00020601,2]
[314809169,1708561832518,-500.0,0.00020802,2]
[314809171,1708561832527,-1485.83,0.00020802,2]
[314809173,1708561832536,-1478.56,0.00020802,2]
[314809175,1708561832546,-500.0,0.00020802,2]
[314809177,1708561832555,-500.0,0.00020802,2]
[314809179,1708561832566,-669.6,0.00020802,2]
[314809181,1708561832575,-500.0,0.00020802,2]
[314809183,1708561832584,-500.0,0.00020803,2]
[314809185,1708561832593,-500.0,0.00020803,2]
[314809187,1708561832602,-973.95,0.00020803,2]
[314809189,1708561832611,-517.95,0.00020803,2]
[314809191,1708561832620,-860.34,0.00020803,2]
[314809193,1708561832629,-625.16,0.00020803,2]
[314809194,1708561832638,-500.0,0.00020803,2]
[314809196,1708561832647,-500.0,0.00020803,2]
[314809198,1708561832657,-523.07,0.00020803,2]
[314809200,1708561832668,-500.0,0.00020804,2]
[314809202,1708561832678,-682.93,0.00020804,2]
[314809204,1708561832687,-500.0,0.00020804,2]
[314809206,1708561832696,-589.04,0.00020804,2]
[314809208,1708561832705,-500.0,0.00020804,2]
[314809210,1708561832714,-500.0,0.00020874,2]
[314809211,1708561832723,-500.0,0.00020874,2]
[314809213,1708561832732,-500.0,0.00020874,2]
[314809215,1708561832742,-1485.83,0.00021076,2]
[314809217,1708561832751,-1478.56,0.00021076,2]
[314809219,1708561832761,-669.6,0.00021076,2]
[314809221,1708561832770,-500.0,0.00021076,2]
[314809223,1708561832780,-500.0,0.00021077,2]
[314809225,1708561832790,-500.0,0.00021077,2]
[314809227,1708561832799,-973.95,0.00021077,2]
[314809229,1708561832808,-517.95,0.00021077,2]
[314809230,1708561832822,-860.34,0.00021077,2]
[314809231,1708561832831,-625.16,0.00021077,2]
[314809233,1708561832840,-500.0,0.00021077,2]
[314809235,1708561832852,-500.0,0.00021077,2]
[314809236,1708561832895,-523.07,0.00021077,2]
[314809237,1708561832904,-500.0,0.00021078,2]
[314809238,1708561832915,-682.93,0.00021078,2]
[314809239,1708561832924,-500.0,0.00021078,2]
[314809240,1708561832933,-589.04,0.00021078,2]
[314809241,1708561832942,-500.0,0.00021078,2]
[314809242,1708561832951,-189.10570464,0.0002111,2]
[314809243,1708561832961,-357.62266067,0.0002111,2]
[314809244,1708561832970,-407.67458012,0.0002111,2]
[314809245,1708561832982,-632.89082346,0.0002111,2]
[314809246,1708561832991,-164.71414859,0.0002111,2]
[314809247,1708561833002,-500.0,0.00021148,2]
[314809248,1708561833012,-500.0,0.00021148,2]
[314809249,1708561833021,-500.0,0.00021148,2]
[314809250,1708561833030,-2279.04747178,0.0002134,3]
[314809251,1708561833043,-535.43841798,0.0002134,3]
[314809252,1708561833056,-1015.61411024,0.0002134,3]
[314809253,1708561833068,-2066.89320474,0.00021341,3]
[314809265,1708561838091,-399.12679526,0.00021341,3]
[314809267,1708561838100,-3866.86484473,0.00021341,3]
[314809273,1708561838149,-729.26515527,0.00021341,3]
[314809275,1708561838158,-300.0,0.00021349,2]
[314809277,1708561838168,-125.84408312,0.0002135,2]
[314809279,1708561838179,-697.50002895,0.0002135,2]
[314809938,1708561845722,-468.14325502,0.00020529,2]
[314809939,1708561845732,-500.0,0.000206,2]
[314809941,1708561845741,-332.49575976,0.0002135,2]
[314809989,1708561846262,-329.99012817,0.0002135,2]
[314809991,1708561846272,-140.21919781,0.0002135,2]
[314811484,1708563041625,-899.82195666,0.00020591,2]
[314811490,1708563045170,-411.73609774,0.00020591,2]
[314811491,1708563045180,-691.36899456,0.00020592,2]
[314811492,1708563045189,-569.11,0.000206,2]
[314811493,1708563045199,-500.0,0.000206,2]
[314811494,1708563045209,-500.0,0.000206,2]
[314811495,1708563045218,-500.0,0.000206,2]
[314811496,1708563045229,-1382.26596908,0.00020601,2]
[314811497,1708563045238,-794.32644827,0.00020601,2]
[314811498,1708563045247,-500.0,0.00020802,2]
[314811499,1708563045256,-500.0,0.00020802,2]
[314811500,1708563045266,-500.0,0.00020802,2]
[314811501,1708563045275,-1020.74,0.00020802,2]
[314811502,1708563045285,-396.641661,0.00020802,2]
[314811503,1708563045295,-500.0,0.00020802,2]
[314811504,1708563045305,-500.0,0.00020802,2]
[314811505,1708563045315,-500.0,0.00020803,2]
[314811506,1708563045324,-569.11,0.00020874,2]
[314811507,1708563045333,-500.0,0.00020874,2]
[314811508,1708563045344,-500.0,0.00020874,2]
[314811509,1708563045354,-500.0,0.00021076,2]
[314811510,1708563045363,-500.0,0.00021076,2]
[314811511,1708563045372,-500.0,0.00021076,2]
[314811512,1708563045382,-1020.74,0.00021076,2]
[314811513,1708563045391,-500.0,0.00021076,2]
[314811514,1708563045400,-500.0,0.00021077,2]
[314811515,1708563045410,-170.29650508,0.0002111,2]
[314811516,1708563045419,-198.60682168,0.0002111,2]
[314811517,1708563045429,-690.13,0.00021147,2]
[314811518,1708563045439,-569.11,0.00021148,2]
[314811519,1708563045583,-500.0,0.00021148,2]
[314811520,1708563045593,-500.0,0.00021148,2]
[314811521,1708563045603,-500.0,0.00021349,2]
[314811522,1708563045612,-500.0,0.00021349,2]
[314811523,1708563045622,-500.0,0.00021349,2]
[314811524,1708563045631,-500.0,0.00021349,2]
[314811525,1708563045640,-1349.5,0.00021349,2]
[314811526,1708563045650,-500.0,0.00021349,2]
[314811527,1708563045659,-1300.1,0.00021349,2]
[314811528,1708563045669,-500.0,0.00021349,2]
[314811529,1708563045678,-892.79,0.00021349,2]
[314811530,1708563045688,-500.0,0.00021349,2]
[314811531,1708563045697,-788.64,0.00021349,2]
[314811532,1708563045707,-573.06,0.00021349,2]
[314811533,1708563045717,-3425.07,0.00021349,2]
[314811534,1708563045727,-155.00465014,0.0002135,2]
[314811535,1708563045736,-500.0,0.0002135,2]
[314811536,1708563045746,-500.0,0.0002135,2]
[314811537,1708563045755,-500.0,0.0002135,2]
[314811538,1708563045764,-1020.74,0.0002135,2]
[314811539,1708563045774,-500.0,0.0002135,2]
[314811540,1708563045785,-500.0,0.00021351,2]
[314811541,1708563045794,-690.13,0.00021421,2]
[314811542,1708563045803,-569.11,0.00021422,2]
[314811543,1708563045812,-500.0,0.00021422,2]
[314811544,1708563045821,-500.0,0.00021422,2]
[314811545,1708563045831,-1750.0,0.000215,2]
[314811546,1708563045840,-500.0,0.00021623,2]
[314811547,1708563045850,-500.0,0.00021623,2]
[314811548,1708563045860,-500.0,0.00021623,2]
[314811549,1708563045869,-500.0,0.00021623,2]
[314811550,1708563045879,-1349.5,0.00021623,2]
[314811551,1708563045888,-500.0,0.00021623,2]
[314811552,1708563045897,-1300.1,0.00021623,2]
[314811553,1708563045907,-500.0,0.00021623,2]
[314811554,1708563045916,-892.79,0.00021623,2]
[314811555,1708563045926,-330.8,0.00021623,2]
[314811556,1708563045935,-788.64,0.00021623,2]
[314811557,1708563045944,-573.06,0.00021623,2]
[314811558,1708563045954,-3425.07,0.00021623,2]
[314811559,1708563045963,-500.0,0.00021624,2]
[314811560,1708563045973,-214.68539027,0.00021624,2]
[314811561,1708563045982,-500.0,0.00021624,2]
[314811562,1708563045991,-1020.74,0.00021624,2]
[314811564,1708563046001,-500.0,0.00021624,2]
[314811566,1708563046010,-500.0,0.00021625,2]
[314811568,1708563046019,-690.13,0.00021695,2]
[314811570,1708563046028,-569.11,0.00021696,2]
[314811572,1708563046042,-500.0,0.00021696,2]
[314811574,1708563046051,-500.0,0.00021696,2]
[314811576,1708563046060,-2935.22,0.00021887,3]
[314811578,1708563046070,-2446.01,0.00021887,3]
[314811580,1708563046079,-2038.34,0.00021887,3]
[314811582,1708563046088,-1539.23,0.00021888,3]
[314811584,1708563046098,-183.70268941,0.00021896,2]
[314811586,1708563046107,-559.23152614,0.00021897,2]
[314811588,1708563046116,-500.0,0.00021897,2]
[314811590,1708563046125,-500.0,0.00021897,2]
[314811592,1708563046134,-500.0,0.00021897,2]
[314811594,1708563046143,-1349.5,0.00021897,2]
[314811596,1708563046152,-500.0,0.00021897,2]
[314811598,1708563046161,-1300.1,0.00021897,2]
[314811600,1708563046170,-319.55693285,0.00021897,2]
[314811602,1708563046179,-892.79,0.00021897,2]
[314811604,1708563046188,-788.64,0.00021897,2]
[314811606,1708563046197,-573.06,0.00021897,2]
[314811608,1708563046208,-3425.07,0.00021897,2]
[314811610,1708563046217,-500.0,0.00021898,2]
[314811612,1708563046227,-500.0,0.00021898,2]
[314811614,1708563046236,-1020.74,0.00021898,2]
[314811616,1708563046245,-500.0,0.00021898,2]
[314811618,1708563046254,-500.0,0.00021899,2]
[314811620,1708563046263,-500.0,0.00021917,2]
[314811622,1708563046272,-690.13,0.00021969,2]
[314811624,1708563046283,-569.11,0.0002197,2]
[314811626,1708563046292,-500.0,0.0002197,2]
[314811628,1708563046302,-500.0,0.0002197,2]
[314811630,1708563046311,-621.4036528,0.00021998,2]
[314811632,1708563046321,-230.52932753,0.00021999,2]
[314811634,1708563046331,-500.0,0.00021999,2]
[314811636,1708563046341,-500.0,0.00021999,2]
[314811638,1708563046350,-500.0,0.00021999,2]
[314811640,1708563046360,-500.0,0.00021999,2]
[314811642,1708563046369,-500.0,0.00021999,2]
[314811644,1708563046379,-500.0,0.00021999,2]
[314811646,1708563046389,-450.0,0.00021999,2]
[314811648,1708563046398,-500.0,0.00021999,2]
[314811650,1708563046408,-500.0,0.00021999,2]
[314811652,1708563046417,-500.0,0.00021999,2]
[314811654,1708563046427,-500.0,0.00021999,2]
[314811656,1708563046436,-500.0,0.00021999,2]
[314811658,1708563046446,-485.19787471,0.00021999,2]
[314811660,1708563046455,-964.42111862,0.00022,3]
[314811662,1708563046464,-2604917.45134934,0.00022,2]
[314811711,1708563325057,24900.0,0.00019412,2]
[314811717,1708563550615,10000.0,0.00029,30]
[314811718,1708563573300,2544.0,0.00029,30]
[314811721,1708563623298,370.383532,0.00019343,2]
[314811736,1708563782070,1783.85,0.000195,2]
[314811740,1708563796407,2782.5091811,0.00019454,2]
[314811767,1708564085463,185.191766,0.0001947,2]
[314811793,1708564232687,-1311.5580544,0.0001967,2]
[314811794,1708564232697,-360.684021,0.00019671,2]
[314811795,1708564232707,-328.0941461,0.000199,2]